[Event "Rapid del Mercoledì"]
[Site "Chess.com"]
[Date "2020.05.06"]
[Round "4"]
[White "laremaro"]
[Black "Mrtre7"]
[Result "1-0"]
[WhiteElo "1608"]
[BlackElo "1425"]
[TimeControl "720+3"]
[EndTime "13:32:52 PDT"]
[Termination "laremaro ha vinto per scaccomatto"]

1. e4 {[%clk 0:12:02.3]} 1... c5 {[%clk 0:12:01.1]} 2. d4 {[%clk 0:11:55]} 2...
cxd4 {[%clk 0:12:02]} 3. c3 {[%clk 0:11:55.7]} 3... dxc3 {[%clk 0:12:03.3]} 4.
Nxc3 {[%clk 0:11:56.8]} 4... Nc6 {[%clk 0:12:05.1]} 5. Bc4 {[%clk 0:11:57.8]}
5... d6 {[%clk 0:12:02.7]} 6. Nf3 {[%clk 0:11:59.5]} 6... e6 {[%clk 0:12:02.4]}
7. O-O {[%clk 0:12:00.1]} 7... Nf6 {[%clk 0:12:04.4]} 8. Qe2 {[%clk 0:12:01.6]}
8... Be7 {[%clk 0:12:02]} 9. Rd1 {[%clk 0:12:03.6]} 9... e5 {[%clk 0:12:03.9]}
10. b4 {[%clk 0:11:54]} 10... Bg4 {[%clk 0:11:49.3]} 11. b5 {[%clk 0:11:43.6]}
11... Bxf3 {[%clk 0:11:49.7]} 12. gxf3 {[%clk 0:11:35.3]} 12... Nd4 {[%clk
0:11:25.3]} 13. Rxd4 {[%clk 0:11:21.7]} 13... exd4 {[%clk 0:11:25.8]} 14. Nd5
{[%clk 0:11:10.2]} 14... O-O {[%clk 0:10:16.9]} 15. Bb2 {[%clk 0:10:48.9]} 15...
Nxd5 {[%clk 0:10:11.4]} 16. Bxd5 {[%clk 0:10:41.3]} 16... Bf6 {[%clk 0:09:58]}
17. Bc4 {[%clk 0:10:37.8]} 17... Rc8 {[%clk 0:09:14.5]} 18. Bd3 {[%clk 0:10:39]}
18... Re8 {[%clk 0:09:12.9]} 19. f4 {[%clk 0:10:36.1]} 19... Qb6 {[%clk
0:06:28.6]} 20. Kh1 {[%clk 0:10:06.6]} 20... a6 {[%clk 0:06:20]} 21. bxa6 {[%clk
0:10:01.5]} 21... bxa6 {[%clk 0:06:21.2]} 22. Rg1 {[%clk 0:09:59.3]} 22... Rb8
{[%clk 0:06:16.8]} 23. Ba1 {[%clk 0:09:56.3]} 23... Rec8 {[%clk 0:05:44.1]} 24.
e5 {[%clk 0:09:41.2]} 24... dxe5 {[%clk 0:05:32.6]} 25. fxe5 {[%clk 0:09:42.4]}
25... Re8 {[%clk 0:04:12.5]} 26. f4 {[%clk 0:09:33.5]} 26... Qc6+ {[%clk
0:03:25]} 27. Be4 {[%clk 0:09:30.9]} 27... Qe6 {[%clk 0:03:13.8]} 28. Bxd4
{[%clk 0:08:23.6]} 28... Rbd8 {[%clk 0:03:06.2]} 29. Bb2 {[%clk 0:08:12.3]}
29... Be7 {[%clk 0:02:55]} 30. f5 {[%clk 0:08:00.3]} 30... Qb6 {[%clk
0:02:50.5]} 31. Rxg7+ {[%clk 0:07:08.3]} 31... Kxg7 {[%clk 0:01:29.8]} 32. Qg4+
{[%clk 0:06:09.6]} 32... Kh8 {[%clk 0:01:15.3]} 33. f6 {[%clk 0:05:00.4]} 33...
Bxf6 {[%clk 0:01:13.2]} 34. exf6 {[%clk 0:04:59.5]} 34... Rxe4 {[%clk
0:01:11.9]} 35. Qg7# {[%clk 0:04:58.9]} 1-0

[Event "Rapid del Mercoledì"]
[Site "Chess.com"]
[Date "2020.05.06"]
[Round "4"]
[White "pedrak"]
[Black "GB86_CHESS"]
[Result "1-0"]
[WhiteElo "1709"]
[BlackElo "1783"]
[TimeControl "720+3"]
[EndTime "13:35:00 PDT"]
[Termination "pedrak ha vinto per scaccomatto"]

1. d4 {[%clk 0:11:55.8]} 1... e6 {[%clk 0:09:56.5]} 2. Nf3 {[%clk 0:11:54.2]}
2... Nf6 {[%clk 0:09:55.6]} 3. Bf4 {[%clk 0:11:52.8]} 3... d5 {[%clk 0:09:47.5]}
4. e3 {[%clk 0:11:52.7]} 4... Bd6 {[%clk 0:09:48]} 5. Bg3 {[%clk 0:11:52]} 5...
Ne4 {[%clk 0:09:42.2]} 6. Bd3 {[%clk 0:11:49.9]} 6... Nxg3 {[%clk 0:09:42.7]} 7.
hxg3 {[%clk 0:11:50.7]} 7... h6 {[%clk 0:09:43.3]} 8. Nbd2 {[%clk 0:11:51.3]}
8... Nd7 {[%clk 0:09:43.5]} 9. Qe2 {[%clk 0:11:49.4]} 9... Nf6 {[%clk
0:09:43.8]} 10. c3 {[%clk 0:11:42.6]} 10... c5 {[%clk 0:09:42.8]} 11. Ne5 {[%clk
0:11:38.8]} 11... c4 {[%clk 0:09:37.1]} 12. Bc2 {[%clk 0:11:39.6]} 12... Qc7
{[%clk 0:09:21.3]} 13. f4 {[%clk 0:11:39.4]} 13... b5 {[%clk 0:09:20.9]} 14. O-O
{[%clk 0:11:27.1]} 14... a5 {[%clk 0:08:42.7]} 15. Qf3 {[%clk 0:10:45.7]} 15...
b4 {[%clk 0:08:18.1]} 16. Ba4+ {[%clk 0:10:43.6]} 16... Bd7 {[%clk 0:08:07.7]}
17. Nxd7 {[%clk 0:10:39.4]} 17... Nxd7 {[%clk 0:08:08.8]} 18. e4 {[%clk
0:10:37]} 18... O-O {[%clk 0:07:56.8]} 19. e5 {[%clk 0:10:32.8]} 19... Be7
{[%clk 0:07:56.4]} 20. g4 {[%clk 0:09:55.1]} 20... Nb6 {[%clk 0:07:56]} 21. Bc2
{[%clk 0:09:50.1]} 21... f5 {[%clk 0:07:56.3]} 22. gxf5 {[%clk 0:09:00.1]} 22...
exf5 {[%clk 0:07:55.6]} 23. Qh3 {[%clk 0:08:13.2]} 23... Qd7 {[%clk 0:07:50.8]}
24. Rf3 {[%clk 0:08:08.3]} 24... a4 {[%clk 0:07:26.5]} 25. Nf1 {[%clk
0:07:51.8]} 25... Kh7 {[%clk 0:06:56.6]} 26. Ne3 {[%clk 0:07:32.9]} 26... g6
{[%clk 0:06:53.5]} 27. Kf2 {[%clk 0:06:38.2]} 27... a3 {[%clk 0:06:54.8]} 28.
Rh1 {[%clk 0:06:35.7]} 28... h5 {[%clk 0:06:49.5]} 29. g4 {[%clk 0:05:56.3]}
29... h4 {[%clk 0:06:07.5]} 30. gxf5 {[%clk 0:04:01.4]} 30... Rh8 {[%clk
0:04:59.7]} 31. fxg6+ {[%clk 0:03:56.8]} 31... Kg7 {[%clk 0:04:58.9]} 32. f5
{[%clk 0:03:50.1]} 32... Bg5 {[%clk 0:04:26.1]} 33. f6+ {[%clk 0:03:45.1]} 33...
Kg8 {[%clk 0:04:21.1]} 34. e6 {[%clk 0:03:07.6]} 34... Bxe3+ {[%clk 0:04:10]}
35. Rxe3 {[%clk 0:02:30]} 35... Qd6 {[%clk 0:04:10.7]} 36. e7 {[%clk 0:02:25.8]}
36... Qxf6+ {[%clk 0:04:02.3]} 37. Ke2 {[%clk 0:02:18.7]} 37... axb2 {[%clk
0:03:37.8]} 38. e8=Q+ {[%clk 0:02:09.4]} 38... Rxe8 {[%clk 0:03:38.2]} 39. Rxe8+
{[%clk 0:02:10.7]} 39... Kg7 {[%clk 0:03:40.3]} 40. Rxh8 {[%clk 0:02:05.3]}
40... bxc3 {[%clk 0:03:34.7]} 41. Rf1 {[%clk 0:01:41.8]} 41... Qxd4 {[%clk
0:03:24.9]} 42. Rh7+ {[%clk 0:01:37.9]} 42... Kg8 {[%clk 0:03:15.5]} 43. Qe6#
{[%clk 0:01:38.9]} 1-0

[Event "Rapid del Mercoledì"]
[Site "Chess.com"]
[Date "2020.05.06"]
[Round "5"]
[White "MarcoCiva"]
[Black "sirmale49"]
[Result "1-0"]
[WhiteElo "1415"]
[BlackElo "1374"]
[TimeControl "720+3"]
[EndTime "13:48:27 PDT"]
[Termination "MarcoCiva ha vinto per abbandono"]

1. d4 {[%clk 0:12:02.7]} 1... d5 {[%clk 0:11:56.8]} 2. c4 {[%clk 0:12:01.7]}
2... e5 {[%clk 0:11:50.4]} 3. dxe5 {[%clk 0:11:53.9]} 3... d4 {[%clk 0:11:45.7]}
4. Nf3 {[%clk 0:11:02.8]} 4... Nc6 {[%clk 0:11:44.3]} 5. a3 {[%clk 0:10:58.7]}
5... Bf5 {[%clk 0:11:33.1]} 6. e3 {[%clk 0:10:25.7]} 6... dxe3 {[%clk
0:11:10.1]} 7. Qxd8+ {[%clk 0:10:12.4]} 7... Rxd8 {[%clk 0:11:09.8]} 8. Bxe3
{[%clk 0:10:08.5]} 8... Bg4 {[%clk 0:10:58.4]} 9. Be2 {[%clk 0:10:08.4]} 9...
Bxf3 {[%clk 0:10:50.2]} 10. Bxf3 {[%clk 0:10:09.2]} 10... Nxe5 {[%clk
0:10:51.7]} 11. Bxb7 {[%clk 0:09:53.1]} 11... Rb8 {[%clk 0:10:45.6]} 12. Be4
{[%clk 0:09:46.4]} 12... Rxb2 {[%clk 0:10:39.7]} 13. Bd4 {[%clk 0:09:38.1]}
13... Rxb1+ {[%clk 0:10:09.4]} 14. Rxb1 {[%clk 0:09:35.3]} 14... Nxc4 {[%clk
0:10:02.1]} 15. Bc6+ {[%clk 0:09:10.1]} 15... Ke7 {[%clk 0:09:15.9]} 16. Rc1
{[%clk 0:08:46.2]} 16... Nd6 {[%clk 0:08:48.5]} 17. O-O {[%clk 0:08:42.4]} 17...
Kd8 {[%clk 0:08:46.9]} 18. Bxa7 {[%clk 0:08:33.5]} 18... f6 {[%clk 0:08:44.3]}
19. Rfd1 {[%clk 0:08:24.2]} 19... Ne7 {[%clk 0:08:42.8]} 20. Bf3 {[%clk
0:08:08.5]} 20... Kc8 {[%clk 0:08:36]} 21. Rxd6 {[%clk 0:08:04.6]} 21... Nf5
{[%clk 0:08:18]} 22. Rdc6 {[%clk 0:07:55.9]} 22... Bd6 {[%clk 0:08:14.1]} 23.
Bb6 {[%clk 0:07:49.6]} 23... Re8 {[%clk 0:07:09.2]} 24. Bxc7 {[%clk 0:07:45.4]}
24... Bxc7 {[%clk 0:07:03.8]} 25. Rxc7+ {[%clk 0:07:46.8]} 25... Kd8 {[%clk
0:06:58]} 26. Rc8+ {[%clk 0:07:35.6]} 26... Ke7 {[%clk 0:06:58.7]} 27. Rxe8+
{[%clk 0:07:37.5]} 27... Kxe8 {[%clk 0:06:59.8]} 28. a4 {[%clk 0:07:38.7]} 28...
Nd4 {[%clk 0:06:58]} 29. a5 {[%clk 0:07:38.6]} 29... Nb5 {[%clk 0:06:51.9]} 30.
Bc6+ {[%clk 0:07:21.1]} 1-0

[Event "Rapid del Mercoledì"]
[Site "Chess.com"]
[Date "2020.05.06"]
[Round "5"]
[White "Mrtre7"]
[Black "sergiodone"]
[Result "1-0"]
[WhiteElo "1458"]
[BlackElo "1532"]
[TimeControl "720+3"]
[EndTime "13:50:17 PDT"]
[Termination "Mrtre7 ha vinto per abbandono"]

1. d4 {[%clk 0:12:02.9]} 1... Nf6 {[%clk 0:11:54.1]} 2. c4 {[%clk 0:12:04.9]}
2... c5 {[%clk 0:11:54.3]} 3. d5 {[%clk 0:12:05.6]} 3... b5 {[%clk 0:11:55.4]}
4. cxb5 {[%clk 0:11:53.2]} 4... a6 {[%clk 0:11:55.4]} 5. Nc3 {[%clk 0:11:50.4]}
5... Qb6 {[%clk 0:11:50.1]} 6. e4 {[%clk 0:11:36.8]} 6... d6 {[%clk 0:11:50.4]}
7. Nf3 {[%clk 0:11:35.4]} 7... Nbd7 {[%clk 0:11:50.4]} 8. Be3 {[%clk 0:11:33.7]}
8... g6 {[%clk 0:11:51.1]} 9. Bd3 {[%clk 0:11:34.6]} 9... Bg7 {[%clk 0:11:52.5]}
10. O-O {[%clk 0:11:36.3]} 10... O-O {[%clk 0:11:52.4]} 11. Nd2 {[%clk 0:11:38]}
11... axb5 {[%clk 0:11:52.3]} 12. Bxb5 {[%clk 0:11:30.6]} 12... Ba6 {[%clk
0:11:44.4]} 13. Nc4 {[%clk 0:11:16.4]} 13... Qb7 {[%clk 0:11:26.4]} 14. Bxa6
{[%clk 0:11:15.4]} 14... Rxa6 {[%clk 0:11:19.7]} 15. a4 {[%clk 0:11:13.4]} 15...
Raa8 {[%clk 0:11:05.3]} 16. a5 {[%clk 0:11:02]} 16... h5 {[%clk 0:11:02]} 17.
Qa4 {[%clk 0:10:46.9]} 17... Ng4 {[%clk 0:10:53.6]} 18. Bd2 {[%clk 0:10:26.7]}
18... Nge5 {[%clk 0:10:50.5]} 19. a6 {[%clk 0:10:02.3]} 19... Qb4 {[%clk
0:09:46.3]} 20. Qxb4 {[%clk 0:09:34.6]} 20... cxb4 {[%clk 0:09:47.1]} 21. Nxe5
{[%clk 0:09:17.2]} 21... bxc3 {[%clk 0:09:40.1]} 22. Nxd7 {[%clk 0:08:15.6]}
22... cxb2 {[%clk 0:09:38.1]} 23. Rab1 {[%clk 0:08:13.1]} 23... Rfd8 {[%clk
0:09:35.9]} 24. Nb6 {[%clk 0:08:03.8]} 24... Rxa6 {[%clk 0:09:37.5]} 25. Nc4
{[%clk 0:07:56.2]} 25... Ra2 {[%clk 0:09:32.3]} 26. f4 {[%clk 0:07:52]} 26...
Rc8 {[%clk 0:09:33.7]} 27. Ne3 {[%clk 0:07:03.7]} 27... Ra1 {[%clk 0:09:22.5]}
28. e5 {[%clk 0:06:49.1]} 28... Rxb1 {[%clk 0:09:21.6]} 29. Rxb1 {[%clk
0:06:48.6]} 29... dxe5 {[%clk 0:09:22.3]} 30. fxe5 {[%clk 0:06:21.7]} 30... Bxe5
{[%clk 0:09:22.7]} 31. Nd1 {[%clk 0:06:01.9]} 31... Bd4+ {[%clk 0:09:17]} 32.
Kf1 {[%clk 0:06:00.9]} 32... Rc1 {[%clk 0:09:08.5]} 33. Bxc1 {[%clk 0:05:54.4]}
33... bxc1=Q {[%clk 0:08:56]} 34. Rxc1 {[%clk 0:05:55.9]} 34... Be5 {[%clk
0:08:56.1]} 35. g3 {[%clk 0:05:52.6]} 35... Bd6 {[%clk 0:08:57.4]} 36. Ne3
{[%clk 0:05:54]} 36... Kg7 {[%clk 0:08:58.6]} 37. Ke2 {[%clk 0:05:47.9]} 37...
g5 {[%clk 0:08:59.8]} 38. Kf3 {[%clk 0:05:48.7]} 38... Kg6 {[%clk 0:09:01.7]}
39. Ke4 {[%clk 0:05:50.3]} 39... f5+ {[%clk 0:09:02.7]} 40. Nxf5 {[%clk
0:05:50.5]} 40... Kf6 {[%clk 0:08:36.1]} 41. Nxd6 {[%clk 0:05:48.9]} 41... exd6
{[%clk 0:08:37]} 42. Rc6 {[%clk 0:05:50.5]} 42... Ke7 {[%clk 0:08:37.7]} 43. Kf5
{[%clk 0:05:50.8]} 43... h4 {[%clk 0:08:23.5]} 44. gxh4 {[%clk 0:05:47.9]} 44...
gxh4 {[%clk 0:08:24.7]} 45. Rc7+ {[%clk 0:05:39.7]} 45... Kd8 {[%clk 0:08:21.3]}
46. Ra7 {[%clk 0:05:40]} 1-0

[Event "Rapid del Mercoledì"]
[Site "Chess.com"]
[Date "2020.05.06"]
[Round "5"]
[White "fausto2p"]
[Black "Luca090267"]
[Result "1-0"]
[WhiteElo "1097"]
[BlackElo "1373"]
[TimeControl "720+3"]
[EndTime "13:50:18 PDT"]
[Termination "fausto2p ha vinto per abbandono"]

1. d4 {[%clk 0:12:02.9]} 1... Nf6 {[%clk 0:12:00.6]} 2. c4 {[%clk 0:12:04.3]}
2... g6 {[%clk 0:12:02.5]} 3. Nc3 {[%clk 0:12:04.8]} 3... Bg7 {[%clk 0:12:04.9]}
4. e4 {[%clk 0:12:06.7]} 4... d6 {[%clk 0:12:05.6]} 5. f3 {[%clk 0:12:06.1]}
5... O-O {[%clk 0:12:02.5]} 6. Be3 {[%clk 0:12:06.7]} 6... Nc6 {[%clk
0:11:50.6]} 7. a3 {[%clk 0:11:58.4]} 7... e5 {[%clk 0:11:48.4]} 8. d5 {[%clk
0:11:58.3]} 8... Ne7 {[%clk 0:11:48.9]} 9. g4 {[%clk 0:11:49.7]} 9... Nd7 {[%clk
0:11:49.4]} 10. Nge2 {[%clk 0:11:32.6]} 10... f5 {[%clk 0:11:36.3]} 11. gxf5
{[%clk 0:11:28]} 11... gxf5 {[%clk 0:11:37.2]} 12. Bg5 {[%clk 0:11:21.5]} 12...
fxe4 {[%clk 0:11:31.6]} 13. Nxe4 {[%clk 0:11:17.3]} 13... Qe8 {[%clk 0:11:26.4]}
14. N2g3 {[%clk 0:11:01.5]} 14... Nf5 {[%clk 0:11:18.8]} 15. Nxf5 {[%clk
0:10:54.2]} 15... Rxf5 {[%clk 0:11:16.1]} 16. h4 {[%clk 0:10:40.3]} 16... Qf7
{[%clk 0:11:00.9]} 17. Be2 {[%clk 0:09:54.2]} 17... Nf6 {[%clk 0:10:18.6]} 18.
Rg1 {[%clk 0:09:31.2]} 18... Nxe4 {[%clk 0:10:15.1]} 19. fxe4 {[%clk 0:09:24.9]}
19... Rf2 {[%clk 0:09:45.7]} 20. Bh6 {[%clk 0:09:03.7]} 20... Rf6 {[%clk
0:09:01.8]} 21. Rxg7+ {[%clk 0:09:03.2]} 21... Qxg7 {[%clk 0:09:01.7]} 22. Bxg7
{[%clk 0:09:04.8]} 22... Kxg7 {[%clk 0:09:03.6]} 23. Qd2 {[%clk 0:09:03.6]}
23... Bd7 {[%clk 0:08:38.1]} 24. O-O-O {[%clk 0:09:02.5]} 24... Raf8 {[%clk
0:08:36.5]} 25. Qg5+ {[%clk 0:08:15.2]} 25... Kh8 {[%clk 0:08:34.6]} 26. Rf1
{[%clk 0:07:59]} 26... Rxf1+ {[%clk 0:08:32.9]} 27. Bxf1 {[%clk 0:08:00.2]}
27... Rxf1+ {[%clk 0:08:33.3]} 28. Kc2 {[%clk 0:08:00.1]} 28... Ba4+ {[%clk
0:08:01.9]} 29. Kc3 {[%clk 0:07:51.9]} 29... Rf3+ {[%clk 0:07:46.2]} 30. Kb4
{[%clk 0:07:52.4]} 30... b5 {[%clk 0:07:46.4]} 31. cxb5 {[%clk 0:07:51.8]} 31...
Bd1 {[%clk 0:07:43]} 32. Qd8+ {[%clk 0:07:41.1]} 32... Kg7 {[%clk 0:07:43.5]}
33. Qxc7+ {[%clk 0:07:42]} 33... Kh6 {[%clk 0:07:44.2]} 34. Qxd6+ {[%clk
0:07:42.9]} 34... Kg7 {[%clk 0:07:41.6]} 35. Qe7+ {[%clk 0:07:39.7]} 35... Kg8
{[%clk 0:07:39]} 36. Qxe5 {[%clk 0:07:33.2]} 36... Bc2 {[%clk 0:07:01.9]} 37.
Qe6+ {[%clk 0:07:30.2]} 37... Kh8 {[%clk 0:06:58]} 38. e5 {[%clk 0:07:25.2]}
38... Rb3+ {[%clk 0:06:41.1]} 39. Kc5 {[%clk 0:07:21.2]} 39... Rxb2 {[%clk
0:06:42.1]} 40. Qf6+ {[%clk 0:07:11.6]} 40... Kg8 {[%clk 0:06:42.7]} 41. e6
{[%clk 0:07:08.5]} 41... Rb1 {[%clk 0:06:36]} 42. Qf7+ {[%clk 0:07:02.6]} 1-0

[Event "Rapid del Mercoledì"]
[Site "Chess.com"]
[Date "2020.05.06"]
[Round "5"]
[White "laremaro"]
[Black "pedrak"]
[Result "1/2-1/2"]
[WhiteElo "1614"]
[BlackElo "1705"]
[TimeControl "720+3"]
[EndTime "13:52:15 PDT"]
[Termination "Partita patta per ripetizione di mosse"]

1. e4 {[%clk 0:11:58.1]} 1... d5 {[%clk 0:12:00.3]} 2. Nc3 {[%clk 0:11:58.6]}
2... dxe4 {[%clk 0:11:57]} 3. Nxe4 {[%clk 0:11:59.6]} 3... Bf5 {[%clk
0:11:56.8]} 4. Ng3 {[%clk 0:12:01.4]} 4... Bg6 {[%clk 0:11:58]} 5. Nf3 {[%clk
0:12:01.4]} 5... c6 {[%clk 0:11:59.6]} 6. h4 {[%clk 0:12:01]} 6... h6 {[%clk
0:11:59.8]} 7. Ne5 {[%clk 0:12:03.4]} 7... Bh7 {[%clk 0:11:58.9]} 8. Qh5 {[%clk
0:12:00.1]} 8... g6 {[%clk 0:11:43.2]} 9. Qf3 {[%clk 0:12:00.4]} 9... Nf6 {[%clk
0:11:40]} 10. Qb3 {[%clk 0:11:51.2]} 10... Qd5 {[%clk 0:10:38.9]} 11. Qxd5
{[%clk 0:11:48.3]} 11... Nxd5 {[%clk 0:10:30]} 12. Bc4 {[%clk 0:11:32.7]} 12...
e6 {[%clk 0:10:26]} 13. d4 {[%clk 0:11:18.9]} 13... Nd7 {[%clk 0:10:23.7]} 14.
Nxd7 {[%clk 0:11:13.9]} 14... Kxd7 {[%clk 0:10:24.9]} 15. c3 {[%clk 0:11:07.9]}
15... Bd6 {[%clk 0:10:18.4]} 16. Ne4 {[%clk 0:11:05.1]} 16... Be7 {[%clk
0:10:18.5]} 17. Nc5+ {[%clk 0:10:09.3]} 17... Bxc5 {[%clk 0:10:17.1]} 18. dxc5
{[%clk 0:10:11.1]} 18... Rhe8 {[%clk 0:09:58.5]} 19. Rh3 {[%clk 0:09:58.7]}
19... h5 {[%clk 0:09:55.1]} 20. Rf3 {[%clk 0:09:56.8]} 20... Bg8 {[%clk
0:09:50]} 21. Bd2 {[%clk 0:09:20.8]} 21... Rad8 {[%clk 0:09:48.8]} 22. O-O-O
{[%clk 0:09:18.9]} 22... Kc8 {[%clk 0:09:43.7]} 23. Bg5 {[%clk 0:08:52.6]} 23...
Rd7 {[%clk 0:09:39.2]} 24. Bb3 {[%clk 0:08:38.8]} 24... f5 {[%clk 0:08:53.4]}
25. c4 {[%clk 0:08:23.1]} 25... Nc7 {[%clk 0:08:49.9]} 26. Rxd7 {[%clk
0:08:20.3]} 26... Kxd7 {[%clk 0:08:50.9]} 27. Rd3+ {[%clk 0:08:22.7]} 27... Kc8
{[%clk 0:08:49.9]} 28. Rd6 {[%clk 0:08:17.2]} 28... Na6 {[%clk 0:08:39.5]} 29.
Be3 {[%clk 0:08:04.9]} 29... Rd8 {[%clk 0:08:35.9]} 30. Rxd8+ {[%clk 0:08:01.2]}
30... Kxd8 {[%clk 0:08:37.1]} 31. a3 {[%clk 0:07:51.4]} 31... e5 {[%clk
0:08:36.7]} 32. g3 {[%clk 0:07:49.1]} 32... Nc7 {[%clk 0:08:28.4]} 33. f3 {[%clk
0:07:44.9]} 33... Ne6 {[%clk 0:08:29.6]} 34. Bc2 {[%clk 0:07:24.8]} 34... Bf7
{[%clk 0:08:27.3]} 35. b4 {[%clk 0:07:11.5]} 35... f4 {[%clk 0:08:06.5]} 36.
gxf4 {[%clk 0:07:08.2]} 36... exf4 {[%clk 0:08:05.7]} 37. Bf2 {[%clk 0:07:06.5]}
37... g5 {[%clk 0:08:01]} 38. hxg5 {[%clk 0:06:49.9]} 38... Ke7 {[%clk 0:07:53]}
39. g6 {[%clk 0:06:50.5]} 39... Bg8 {[%clk 0:07:53.4]} 40. Bh4+ {[%clk
0:06:50.4]} 40... Kf8 {[%clk 0:07:54.9]} 41. Kd2 {[%clk 0:06:33.9]} 41... Nd4
{[%clk 0:07:53.4]} 42. Be4 {[%clk 0:06:27.8]} 42... Bxc4 {[%clk 0:07:53.3]} 43.
Bf6 {[%clk 0:06:07.3]} 43... Ne6 {[%clk 0:07:44.4]} 44. Kc3 {[%clk 0:05:38.9]}
44... Be2 {[%clk 0:07:32.7]} 45. Bf5 {[%clk 0:05:08.2]} 45... Ng7 {[%clk
0:07:27]} 46. Be4 {[%clk 0:04:53]} 46... Ne6 {[%clk 0:07:23.2]} 47. Bf5 {[%clk
0:04:47.2]} 47... Ng7 {[%clk 0:07:23.3]} 48. Be4 {[%clk 0:04:48.8]} 48... Ne6
{[%clk 0:07:24.1]} 1/2-1/2

[Event "Rapid del Mercoledì"]
[Site "Chess.com"]
[Date "2020.05.06"]
[Round "5"]
[White "GB86_CHESS"]
[Black "BAKR1980"]
[Result "0-1"]
[WhiteElo "1728"]
[BlackElo "1650"]
[TimeControl "720+3"]
[EndTime "13:53:02 PDT"]
[Termination "BAKR1980 ha vinto per abbandono"]

1. e4 {[%clk 0:11:44.1]} 1... e5 {[%clk 0:12:01.2]} 2. Nf3 {[%clk 0:11:43.7]}
2... Nc6 {[%clk 0:12:02.4]} 3. Bb5 {[%clk 0:11:42.8]} 3... Nf6 {[%clk
0:12:03.6]} 4. O-O {[%clk 0:11:40.3]} 4... a6 {[%clk 0:12:03.3]} 5. Ba4 {[%clk
0:11:40.9]} 5... b5 {[%clk 0:12:04.5]} 6. Bb3 {[%clk 0:11:41.2]} 6... d6 {[%clk
0:12:06.1]} 7. d4 {[%clk 0:11:37.8]} 7... Nxe4 {[%clk 0:11:55]} 8. Re1 {[%clk
0:11:34.7]} 8... f5 {[%clk 0:11:55.8]} 9. dxe5 {[%clk 0:11:23.6]} 9... dxe5
{[%clk 0:11:37.4]} 10. Qxd8+ {[%clk 0:11:22.4]} 10... Kxd8 {[%clk 0:11:38]} 11.
Bd5 {[%clk 0:11:23.6]} 11... Bb7 {[%clk 0:11:37.5]} 12. Bxc6 {[%clk 0:11:24.3]}
12... Bxc6 {[%clk 0:11:38.6]} 13. Nxe5 {[%clk 0:11:26.7]} 13... Be8 {[%clk
0:11:31.1]} 14. f3 {[%clk 0:11:26.3]} 14... Bc5+ {[%clk 0:11:31.8]} 15. Be3
{[%clk 0:11:26.2]} 15... Bxe3+ {[%clk 0:11:23.8]} 16. Rxe3 {[%clk 0:11:27.2]}
16... Nd6 {[%clk 0:11:17.3]} 17. b3 {[%clk 0:11:16]} 17... Kc8 {[%clk 0:11:17]}
18. Nc3 {[%clk 0:11:14.3]} 18... Kb7 {[%clk 0:11:18.3]} 19. Rd1 {[%clk
0:10:59.4]} 19... f4 {[%clk 0:11:18.8]} 20. Red3 {[%clk 0:10:56.7]} 20... g5
{[%clk 0:11:18.1]} 21. a4 {[%clk 0:10:53.6]} 21... h5 {[%clk 0:11:04.1]} 22. Nd5
{[%clk 0:10:20.9]} 22... Rh6 {[%clk 0:10:43.5]} 23. c4 {[%clk 0:09:40.2]} 23...
bxc4 {[%clk 0:10:37.5]} 24. Nxc4 {[%clk 0:09:32.5]} 24... Nxc4 {[%clk
0:10:36.1]} 25. bxc4 {[%clk 0:09:34.2]} 25... Bxa4 {[%clk 0:10:29.2]} 26. Rb1+
{[%clk 0:09:18.5]} 26... Kc6 {[%clk 0:10:20.8]} 27. Ne7+ {[%clk 0:09:20.2]}
27... Kc5 {[%clk 0:10:12.3]} 28. Rd5+ {[%clk 0:09:10.4]} 28... Kxc4 {[%clk
0:10:05.7]} 29. Rxg5 {[%clk 0:09:09.3]} 29... c6 {[%clk 0:09:12.1]} 30. Rf5
{[%clk 0:09:03.2]} 30... Bc2 {[%clk 0:08:44.6]} 31. Rxf4+ {[%clk 0:09:01.9]}
31... Kd3 {[%clk 0:08:43.3]} 32. Rbb4 {[%clk 0:08:39.5]} 32... c5 {[%clk
0:08:36.1]} 33. Rbc4 {[%clk 0:08:26.6]} 33... Re6 {[%clk 0:08:27.1]} 34. Rfe4
{[%clk 0:07:26.4]} 34... Rxe4 {[%clk 0:08:21.7]} 35. Rxe4 {[%clk 0:07:24.1]}
35... a5 {[%clk 0:08:17.9]} 36. Nd5 {[%clk 0:07:06.8]} 36... a4 {[%clk
0:08:08.9]} 37. Re3+ {[%clk 0:07:02.9]} 37... Kd2 {[%clk 0:08:04.3]} 38. Ra3
{[%clk 0:06:52.2]} 38... Bb3 {[%clk 0:08:05.8]} 39. Nb6 {[%clk 0:06:12.7]} 39...
Ra6 {[%clk 0:07:55.6]} 40. Nd7 {[%clk 0:05:56.5]} 40... c4 {[%clk 0:07:50.4]}
41. Kf2 {[%clk 0:05:54.8]} 41... Kc2 {[%clk 0:07:31.8]} 42. Ra1 {[%clk
0:05:52.1]} 42... a3 {[%clk 0:07:24.6]} 43. Nc5 {[%clk 0:05:48.9]} 43... Ra5
{[%clk 0:07:24.4]} 44. Ne6 {[%clk 0:05:40.2]} 44... Kb2 {[%clk 0:07:21.2]} 45.
Re1 {[%clk 0:05:39.6]} 45... a2 {[%clk 0:07:22.5]} 46. Re2+ {[%clk 0:05:34.4]}
46... Kc1 {[%clk 0:07:10.2]} 47. Re1+ {[%clk 0:05:10.7]} 47... Bd1 {[%clk
0:07:10]} 0-1